Cogmind - Beta 11.1 *** ADVENTURER MODE // 2022.12.08 @ 16:47:11 Player: Occam Result: Self-destructed Performance ------------- Evolutions (2) 1000 Regions Visited (6) 1200 Robots Destroyed (53) 265 Value Destroyed (1588) 1588 Prototype IDs (2) 40 Alien Tech Used (0) 0 Bonus (33) 33 TOTAL SCORE: 4126 Bonus ------- High Alert Combat Kills 33 Cogmind --------- Core Integrity 473/550 Matter 300/300 Energy 265/265 System Corruption 0% Temperature Cool (0) Movement Rolling (210) Ox8 Location -8/Storage Parts ------- > --- POWER (1) -------- Improved Ion Engine > --- PROPULSION (2) --- Armored Wheel Improved VTOL Module > --- UTILITY (5) ------ Improved Heat Sink Huge Storage Unit Visual Processing Unit Improved Sensor Array > --- WEAPON (3) ------- Heavy EM Shotgun Heavy EM Shotgun Heavy EM Shotgun > --- INVENTORY (25) --- Deuterium Engine Light Treads Improved Treads Improved Treads Improved Treads Improved Treads Advanced Treads Heat Sink Small Storage Unit Large Storage Unit Large Matter Pod (150) Large Matter Pod (150) Visual Processing Unit EM Pulse Gun Particle Gun Pulse Rifle Light Assault Rifle Shotgun Shotgun Minigun Flak Cannon Rocket Launcher Rocket Launcher Rocket Launcher Axe Peak State ------------ > --- POWER ------------ Improved Ion Engine > --- PROPULSION ------- Armored Wheel Improved VTOL Module > --- UTILITY ---------- Improved Heat Sink Huge Storage Unit Visual Processing Unit Improved Sensor Array > --- WEAPON ----------- Heavy EM Shotgun Heavy EM Shotgun Heavy EM Shotgun > --- INVENTORY -------- Deuterium Engine Light Treads Improved Treads Improved Treads Improved Treads Improved Treads Advanced Treads Heat Sink Small Storage Unit Large Storage Unit Large Matter Pod Large Matter Pod Visual Processing Unit EM Pulse Gun Particle Gun Pulse Rifle Light Assault Rifle Shotgun Shotgun Minigun Flak Cannon Rocket Launcher Rocket Launcher Rocket Launcher Axe [Rating: 33] Favorites ----------- Power Ion Engine Engine Ion Engine Propulsion Light Treads Treads Light Treads Wheel Wheel Flight Unit Improved VTOL Module Utility Huge Storage Unit Device Improved Heat Sink Storage Huge Storage Unit Processor Visual Processing Unit Protection Light Armor Plating Weapon EMP Blaster Energy Gun Small Laser Ballistic Gun Shotgun Ballistic Cannon Flak Cannon Launcher EMP Blaster Slashing Weapon Axe Build | -11 -10 -10 -10 -9 -8 -8 ------- Run | Scr Mat Min Exi Min Mat Sto Slots Evolved 4 | . . . . . 4 . Power . | . . . . . . . Propulsion . | . . . . . . . Utility 3 | . . . . . 3 . Weapon 1 | . . . . . 1 . Parts Attached 36 | 6 5 . . . 16 9 Power 3 | 1 . . . . 1 1 Engine 3 | 1 . . . . 1 1 Core . | . . . . . . . Reactor . | . . . . . . . Propulsion 6 | 2 . . . . 2 2 Treads 2 | 1 . . . . 1 . Leg . | . . . . . . . Wheel 3 | 1 . . . . 1 1 Hover . | . . . . . . . Flight 1 | . . . . . . 1 Utility 7 | 1 2 . . . 2 2 Device 3 | . . . . . 1 2 Storage 2 | 1 1 . . . . . Processor 1 | . . . . . 1 . Hackware . | . . . . . . . Protection 1 | . 1 . . . . . Artifact . | . . . . . . . Weapon 20 | 2 3 . . . 11 4 Energy Gun 8 | 2 . . . . 3 3 Energy Cannon . | . . . . . . . Ballistic Gun 6 | . 1 . . . 5 . Ballistic Cannon 1 | . . . . . . 1 Launcher 4 | . 2 . . . 2 . Special Weapon . | . . . . . . . Impact Weapon . | . . . . . . . Slashing Weapon 1 | . . . . . 1 . Piercing Weapon . | . . . . . . . Special Melee Weapon . | . . . . . . . Unidentified Prototypes 2 | . . . . . . 2 Parts Lost 6 | . . . . . 1 5 Power 1 | . . . . . . 1 Propulsion 2 | . . . . . 1 1 Utility 2 | . . . . . . 2 Weapon 1 | . . . . . . 1 Highest Loss Streak 4 | . . . . . 1 4 To Critical Strikes . | . . . . . . . Average Slot Usage (%) 93 | . 99 100 100 100 82 89 Engine 11 | . 14 14 14 14 9 8 Treads 11 | . 14 14 14 14 8 8 Wheel 11 | . 14 14 14 14 9 9 Device 3 | . . . . . 6 13 Storage 11 | . 14 14 14 14 9 9 Processor 3 | . . . . . 6 9 Protection 11 | . 13 14 14 14 9 3 Energy Gun 5 | . 16 . . . 3 8 Ballistic Gun 9 | . 11 . . . 18 17 Launcher 11 | . . 28 28 28 2 . Naked Turns . | . . . . . . . Heaviest Build 101 | 13 96 96 96 96 100 101 Greatest Support 12 | 10 10 10 10 10 12 12 Greatest Overweight (x) 9 | 1 9 9 9 9 9 8 Average Overweight (x) 8 | . 7 9 9 9 8 7 Largest Inventory Capacity 25 | 8 25 25 25 25 25 25 Average Capacity 24 | 6 24 25 25 25 25 25 Most Carried 25 | 4 19 20 21 21 25 25 Average Carried 20 | 2 13 19 20 21 24 24 Final Capacity 25 | 8 25 25 25 25 25 25 Final Carried 25 | 4 19 20 21 21 25 25 Class Distribution -------------------- 63% | Mutant 14% | Bomber 12% | Scavenger-Skirmisher 9% | Scavenger-Bomber Dominant Class ---------------- Mutant | -10/Materials Mutant | -10/Mines Mutant | -10/Exiles Mutant | -9/Mines Bomber | -8/Materials Scavenger-Skirmisher | -8/Storage Resources | -11 -10 -10 -10 -9 -8 -8 ----------- Run | Scr Mat Min Exi Min Mat Sto Matter Collected 1554 | 139 241 97 150 20 518 389 Remotely . | . . . . . . . Salvage Created 1941 | . 241 104 . . 813 783 Parts 110 | . 19 1 . . 31 59 Haulers Intercepted 3 | . 1 . . . 1 1 Recyclers Shooed 1 | . . . . . 1 . Parts Field Recycled . | . . . . . . . Retrieved Matter . | . . . . . . . Parts Self-Destructed . | . . . . . . . Prevented . | . . . . . . . Kills | -11 -10 -10 -10 -9 -8 -8 ------- Run | Scr Mat Min Exi Min Mat Sto Combat Hostiles Destroyed 39 | . 6 2 . . 12 19 Guns 36 | . 6 . . . 12 18 Cannons 1 | . . . . . . 1 AOE 1 | . . 1 . . . . Classes Destroyed 9 | . 4 . . . 3 2 Worker 1 | . . . . . . 1 Builder 1 | . . . . . . 1 Hauler 3 | . 1 . . . 1 1 Recycler 1 | . . . . . 1 . Watcher 8 | . 2 . . . 4 2 Swarmer 11 | . 3 . . . . 8 Grunt 21 | . 3 2 . . 9 7 Duelist 1 | . . . . . 1 . Sentry 6 | . . . . . 2 4 Best Kill Streak 11 | . 2 2 . . 6 11 Combat Bots Only 10 | . 2 2 . . 6 10 Max Kills in Single Turn 2 | . 1 1 . . 2 2 Gunslinging 1 | . . . . . . 1 Exploded 1 | . . 1 . . . . Melee . | . . . . . . . Uniques/NPCs Destroyed . | . . . . . . . Combat | -11 -10 -10 -10 -9 -8 -8 -------- Run | Scr Mat Min Exi Min Mat Sto Damage Taken 1177 | . 181 33 . . 452 511 Core 142 | . 65 . . . 43 34 Absorbed by Shields . | . . . . . . . Core Remaining (%) 87 | 100 . . . 74 . . Volleys Fired 101 | . 28 2 . . 40 31 Largest 3 | . 2 2 . . 3 3 Hottest 150 | . 80 66 . . 110 150 Shots Fired 262 | . 52 4 . . 113 93 Gun 252 | . 52 . . . 109 91 Cannon 2 | . . . . . . 2 Launcher 8 | . . 4 . . 4 . Special . | . . . . . . . Kinetic 199 | . 26 . . . 92 81 Thermal 41 | . 24 . . . 17 . Explosive 4 | . . . . . 4 . Electromagnetic 18 | . 2 4 . . . 12 Robot Hit Streak 29 | . 11 4 . . 17 29 Robot Miss Streak 4 | . 2 . . . 4 4 Penetration Max . | . . . . . . . Secondary Targets 6 | . . . . . 1 5 Max Gunslinging Chain 1 | . . . . . 1 1 Shots Hit Robots 205 | . 40 4 . . 89 72 Core Hits 114 | . 18 2 . . 49 45 Critical Kills 1 | . . . . . 1 . Critical Parts Destroyed 1 | . . . . . 1 . Critical Strikes 2 | . . . . . 2 . Destroy 2 | . . . . . 2 . Melee Attacks . | . . . . . . . Impact . | . . . . . . . Slashing . | . . . . . . . Piercing . | . . . . . . . Sneak Attacks . | . . . . . . . Combat Hostiles . | . . . . . . . Follow-up Attacks . | . . . . . . . Damage Inflicted 3111 | . 382 145 . . 1327 1257 Guns 2871 | . 382 . . . 1261 1228 Cannons 28 | . . . . . . 28 Explosions 211 | . . 145 . . 66 . Melee . | . . . . . . . Ramming 1 | . . . . . . 1 Kinetic 2258 | . 185 . . . 1038 1035 Thermal 398 | . 175 . . . 223 . Explosive 66 | . . . . . 66 . Electromagnetic 388 | . 22 145 . . . 221 Impact . | . . . . . . . Slashing . | . . . . . . . Piercing . | . . . . . . . Highest Corruption . | . . . . . . . Average Corruption . | . . . . . . . Corruption Purged . | . . . . . . . Corruption Blocked . | . . . . . . . Overload Shots . | . . . . . . . Overflow Damage . | . . . . . . . Projectiles . | . . . . . . . Explosions . | . . . . . . . Melee . | . . . . . . . Knockbacks 1 | . . . . . . 1 Impact . | . . . . . . . Kinetic 1 | . . . . . . 1 Secondary . | . . . . . . . Self-Inflicted Damage . | . . . . . . . Shots . | . . . . . . . Rammed 1 | . . . . . . 1 Targets Rammed 1 | . . . . . . 1 Kicked . | . . . . . . . Crushed . | . . . . . . . Highest Temperature 150 | . 95 48 . . 131 150 Average Temperature 38 | . 27 30 . . 54 43 Received Heat Transfer 588 | . 69 24 . . 306 189 Siege Activations . | . . . . . . . Robots Corrupted 1 | . . 1 . . . . Combat Hostiles 1 | . . 1 . . . . Parts Fried 2 | . . 1 . . . 1 Impact Corruptions . | . . . . . . . Robots Melted . | . . . . . . . Combat Hostiles . | . . . . . . . Parts Melted . | . . . . . . . Heat Transferred 895 | . 400 . . . 495 . Parts Sabotaged . | . . . . . . . Parts Stolen . | . . . . . . . Parts Stripped . | . . . . . . . Power Chain Reactions . | . . . . . . . Missiles Intercepted . | . . . . . . . Alert | -11 -10 -10 -10 -9 -8 -8 ------- Run | Scr Mat Min Exi Min Mat Sto Peak Influence 461 | . 130 92 . . 276 461 Initial 42 | . . 42 . . . 39 Average 85 | . 77 70 . . 92 130 Maximum Alert Level 2 | . . . . . 1 2 Low Security (%) 93 | 100 100 100 . 100 97 73 Level 1 4 | . . . . . 2 16 Level 2 2 | . . . . . . 9 Level 3 . | . . . . . . . Level 4 . | . . . . . . . Level 5 . | . . . . . . . High Security . | . . . . . . . Max Security . | . . . . . . . Squads Dispatched 4 | . . . . . 2 2 Investigation 2 | . . . . . 1 1 Extermination . | . . . . . . . Reinforcement 2 | . . . . . 1 1 Assault . | . . . . . . . Garrison . | . . . . . . . Intercept . | . . . . . . . Searches Triggered . | . . . . . . . Construction Impeded . | . . . . . . . Haulers Reinforced . | . . . . . . . Active Scanning Responses . | . . . . . . . Cargo Convoy Interrupts . | . . . . . . . Stealth | -11 -10 -10 -10 -9 -8 -8 --------- Run | Scr Mat Min Exi Min Mat Sto Distress Signals 5 | . 2 . . . 1 2 Communications Jammed . | . . . . . . . Distress Signals . | . . . . . . . Times Spotted 60 | . 13 2 . . 19 26 Peak Tracking Total 7 | . 3 2 . . 4 7 Tactical Retreats 3 | . 1 . . . . 2 Traps | -11 -10 -10 -10 -9 -8 -8 ------- Run | Scr Mat Min Exi Min Mat Sto Traps Triggered 2 | . 1 . . . . 1 Indirectly . | . . . . . . . Trap Hack Attempts . | . . . . . . . Triggered . | . . . . . . . Disarmed . | . . . . . . . Reprogrammed . | . . . . . . . Reused . | . . . . . . . Traps Extracted . | . . . . . . . Installed . | . . . . . . . Triggered . | . . . . . . . Machines | -11 -10 -10 -10 -9 -8 -8 ---------- Run | Scr Mat Min Exi Min Mat Sto Machines Disabled 1 | . . . . . 1 . Max in Single Turn 1 | . . . . . 1 . Machines Sabotaged . | . . . . . . . Garrisons Compromised . | . . . . . . . Overloaded Fab Kills . | . . . . . . . Hacking | -11 -10 -10 -10 -9 -8 -8 --------- Run | Scr Mat Min Exi Min Mat Sto Machines Accessed 19 | . 6 . 4 . 3 6 Terminals 14 | . 5 . . . 3 6 Fabricators . | . . . . . . . Repair Stations . | . . . . . . . Recycling Units 1 | . 1 . . . . . Scanalyzers . | . . . . . . . Garrison Access . | . . . . . . . Total Hacks 53 | . 18 . 4 . 11 20 Successful 32 | . 9 . 4 . 5 14 Failed 21 | . 9 . . . 6 6 Catastrophic 2 | . 1 . . . . 1 Database Lockouts . | . . . . . . . Manual 46 | . 18 . 2 . 10 16 Terminals 46 | . 15 . . . 11 20 Fabricators . | . . . . . . . Repair Stations . | . . . . . . . Recycling Units 3 | . 3 . . . . . Scanalyzers . | . . . . . . . Garrison Access . | . . . . . . . Terminal Hacks 22 | . 4 . 4 . 3 11 Record 4 | . . . 4 . . . Robot Analysis 4 | . 2 . . . 1 1 Level Access Points 1 | . . . . . . 1 Branch Access Points 2 | . 1 . . . 1 . Terminal Index 3 | . 1 . . . 1 1 Alert Level 3 | . . . . . . 3 Unreport Threat 3 | . . . . . . 3 Locate Traps 1 | . . . . . . 1 Recall Investigation 1 | . . . . . . 1 Fabricator Hacks . | . . . . . . . Repair Station Hacks . | . . . . . . . Recycling Unit Hacks 2 | . 2 . . . . . Report Inventory 1 | . 1 . . . . . Retrieve Components 1 | . 1 . . . . . Scanalyzer . | . . . . . . . Garrison Access Hacks . | . . . . . . . Unauthorized Hacks 8 | . 3 . . . 2 3 Terminals 8 | . 3 . . . 2 3 Botnet 8 | . 3 . . . 2 3 Fabricators . | . . . . . . . Repair Stations . | . . . . . . . Recycling Units . | . . . . . . . Scanalyzers . | . . . . . . . Garrison Access . | . . . . . . . Data Cores Recovered . | . . . . . . . Used . | . . . . . . . Hacking Detections 16 | . 7 . . . 3 6 Full Trace Events 3 | . . . . . 2 1 Feedback Events . | . . . . . . . Feedback Blocked . | . . . . . . . Robot Schematics Acquired . | . . . . . . . Robots Built . | . . . . . . . Authchips . | . . . . . . . Time . | . . . . . . . Total Robot Build Rating . | . . . . . . . Part Schematics Acquired . | . . . . . . . Parts Built . | . . . . . . . Authchips . | . . . . . . . Time . | . . . . . . . Total Part Build Rating . | . . . . . . . Parts Repaired . | . . . . . . . Time . | . . . . . . . Parts Recycled . | . . . . . . . Recycled Matter . | . . . . . . . Retrieved Matter . | . . . . . . . Retrieved Components 2 | . 2 . . . . . Parts Scanalyzed . | . . . . . . . Part Schematics Acquired . | . . . . . . . Parts Damaged . | . . . . . . . Bothacking | -11 -10 -10 -10 -9 -8 -8 ------------ Run | Scr Mat Min Exi Min Mat Sto Used RIF Installer . | . . . . . . . Robots Hacked . | . . . . . . . Non-combat . | . . . . . . . Combat . | . . . . . . . Robot Hacks Applied . | . . . . . . . Relay Couplers Released . | . . . . . . . Fabnet Peak Effective % . | . . . . . . . Robots Rewired . | . . . . . . . Allies Hacked . | . . . . . . . Hacks Repelled . | . . . . . . . Allies | -11 -10 -10 -10 -9 -8 -8 -------- Run | Scr Mat Min Exi Min Mat Sto Total Allies . | . . . . . . . Largest Group . | . . . . . . . Highest-Rated Group . | . . . . . . . Highest-Rated Ally . | . . . . . . . Total Orders . | . . . . . . . Ally Attacks . | . . . . . . . Total Damage . | . . . . . . . Kills . | . . . . . . . Allies Corrupted . | . . . . . . . Allies Melted . | . . . . . . . Intel | -11 -10 -10 -10 -9 -8 -8 ------- Run | Scr Mat Min Exi Min Mat Sto Robot Analysis Total 4 | . 2 . . . 1 1 Derelict Logs Recovered 2 | . . . . 2 . . Drone Launches . | . . . . . . . Drone Recoveries . | . . . . . . . Exploration | -11 -10 -10 -10 -9 -8 -8 ------------- Run | Scr Mat Min Exi Min Mat Sto Turns Passed 3582 | 46 670 134 1035 241 863 593 Spaces Moved 1519 | 38 300 60 481 113 313 214 Core 1 | 1 . . . . . . Treads . | . . . . . . . Legs . | . . . . . . . Wheels 1518 | 37 300 60 481 113 313 214 Hover . | . . . . . . . Flight . | . . . . . . . Fastest Speed 50 | 50 95 215 215 215 210 195 Average Speed 206 | 89 191 215 215 215 214 209 Slowest Speed 215 | 95 215 215 215 215 215 210 Overloaded Moves . | . . . . . . . Propulsion Burnouts . | . . . . . . . Robots Hopped . | . . . . . . . Cave-ins Triggered . | . . . . . . . Exploration Rate (%) 37 | 3 51 16 90 30 36 34 Regions Visited 6 Branch Regions 4 Pre-discovered Areas . | . . . . . . . Known Exits Taken 2 | . 1 . . . 1 . Unknown Exits Taken 4 | 1 . 1 1 1 . . Scrap Searched 1 | . . . . 1 . . Spaces Dug . | . . . . . . . Terrain Destroyed 16 | . . . . . 16 . Melee . | . . . . . . . Projectile . | . . . . . . . AOE 16 | . . . . . 16 . Terrain Rammed . | . . . . . . . Walls Destroyed . | . . . . . . . Machines Disabled . | . . . . . . . Actions | -11 -10 -10 -10 -9 -8 -8 --------- Run | Scr Mat Min Exi Min Mat Sto Total 1772 | 47 349 62 483 112 433 286 Wait 56 | . 3 . . . 36 17 Move 1513 | 37 299 59 480 112 312 214 Hop . | . . . . . . . Pick Up 30 | 4 13 1 2 . 9 1 Fast Attach 24 | 6 2 . . . 10 6 Attach 6 | . . . . . 3 3 Detach 11 | . 1 . . . 7 3 Swap 6 | . 3 . . . 3 . Drop 16 | . . . 1 . 13 2 Fire 101 | . 28 2 . . 40 31 Melee . | . . . . . . . Ram 1 | . . . . . . 1 Kick . | . . . . . . . Crush . | . . . . . . . Escape Stasis 8 | . . . . . . 8 Rewire . | . . . . . . . Trap . | . . . . . . . Miscellaneous . | . . . . . . . Route ------- -11/Scrapyard -10/Materials -10/Mines -10/Exiles -9/Mines -8/Materials (discovered 4 exits: *Fac x2 / *Sto x2) -8/Storage (discovered 2 exits: Fac / Rec) History --------- Turn | Location | Event 11 | -11/Scrapyard | Discovered new exit (range 15) 47 | -11/Scrapyard | Entered Materials 215 | -10/Materials | Discovered new exit (range 14) 302 | -10/Materials | Build established: Mutant 529 | -10/Materials | Identified exit to Mines 717 | -10/Materials | Entered Mines 727 | -10/Mines | Met a Derelict bent on vengeance 843 | -10/Mines | Deemed a non-threat by the Exiles lab entrance 843 | -10/Mines | Discovered new exit (range 5) 851 | -10/Mines | Entered Exiles 851 | -10/Exiles | Found Exiles lab abandoned 1856 | -10/Exiles | Discovered new exit (range 14) 1886 | -10/Exiles | Entered Mines 2091 | -9/Mines | Discovered new exit (range 12) 2108 | -9/Mines | Learned 4 Materials zone layouts 2127 | -9/Mines | Entered Materials 2127 | -8/Materials | Evolved 4 slots: Utility x3, Weapon x1 2128 | -8/Materials | Identified exit to Factory 2128 | -8/Materials | Identified exit to Storage 2990 | -8/Materials | Entered Storage 2991 | -8/Storage | Identified exit to Recycling 3287 | -8/Storage | Destroyed 10 combat bots 3380 | -8/Storage | Lost 4 parts (1p1n1u1w) 3419 | -8/Storage | Build established: Scavenger-Skirmisher 3583 | -8/Storage | Self-destructed Last Messages --------------- 03526_ U-05 Engineer destroyed. 03527_ K-01 Serf collects debris. 03527_ R-06 Scavenger collects Visual Processing Unit. 03530_ K-01 Serf collects debris. 03530_ R-06 Scavenger collects Corrupted Lgt. Nuclear Core. 03531_ R-06 Scavenger collects Terrain Scan Processor. 03533_ K-01 Serf collects debris. 03536_ R-06 Scavenger collects Wheel. 03537_ K-01 Serf collects debris. 03539_ R-06 Scavenger collects Wheel. 03542_ K-01 Serf collects debris. 03544_ R-06 Scavenger collects Imp. Hover Unit. 03545_ K-01 Serf collects debris. 03561_ A-02 Transporter destroyed. 03564_ K-01 Serf collects debris. 03566_ Dropped Lgt. Treads. 03567_ Acquired Prototype Flight Unit. 03567_ Identified Imp. VTOL Module. 03568_ Acquired 10 matter. 03569_ K-01 Serf collects debris. Map ----- +----------------------------------------------------+ | ????????????????????????????????????#####????????? | | ??????????????????????????????????###"T"#########? | | ??????????????????????????????????# # #? | | ??????????????????????????????????# ! # #? | | ??????????????????????????????????# # #? | | ??????????????????????????????????# # #? | | ??????????????????????????????????# """ """ # #? | | ??????????????????????????????????# """ """ + #? | | ??????????????????????????????????# """ """ # #? | | ???????????????????????????????#### # #? | | ???????????????????????????##### ############ ## | | ???????????????????????????#* [ =[#?????????# "# | | ???????????????????????????# [!=#?????????# T# | | ???????????????????????????# ! #?????????# "# | | ???????????????????????##### #?????????# ## | | ??????????###########??# + ##+#??????# #? | | ??????????# """ """ #### # """ ## #??????# #? | | ??????????# """ """ / % # """ ## #??????# #? | | ??????????# """ """?#### %a# """ ## ######## ^^#? | | ??????????# #?## # # #? | | ??????????# #?#T # " ] + #? | | ??????????# #?## # T # #? | | ?????????## = #??# # " ### ############ | | ?????????# [ ? #??# # #?# ##### | | ###############+######## % ##########% # !! | | % %= ===! @ % a # !! | | r % %== T + !! | | *% %=% k k # | | #####+##+##### #######"T"######## # " " | | ?????? ?????# #?????#####??????####### "R" | | ????# ???????# #??????????????????????# """ | | ?????????????# #??????????????????????# % | | ?????????????# #??????????????????????####### | | ?????????????# #????????????????????????????## | | ?????????????# ?????????????????????????????? | | ?????????????##### ????????????????????????????? | | ?????????????????# #???????????????????????????? | | ?????????????????# +???????????????????????????? | | ?????????????????# #???????????????????????????? | | ?????????????????# #???????????????????????????? | | ????????????????? #???????????????????????????? | | ????????????????? +???????????????????????????? | | ????????????????? #???????????????????????????? | | ?????????????????### #???????????????????????????? | | ???????????????????? #???????????????????????????? | | ???????????????????? #???????????????????????????? | | ???????????????????? #???????????????????????????? | | ???????????????????? #???????????????????????????? | | ?????????????????????????????????????????????????? | | ?????????????????????????????????????????????????? | +----------------------------------------------------+ Best States ------------- Heat Dissipation 45 Energy Generation 12 Energy Capacity 265 Matter Stores 300 Matter Capacity 300 Sight Range 18 Robot Scan Range 15 Terrain Scan Density 10 Armor Coverage 150 Resistance: KI 20 Resistance: TH 20 Resistance: EX 20 Resistance: EM 20 Resistance: I 20 Resistance: S 20 Resistance: P 20 Evasion (%) 44 Offensive Hacking 10 Item Schematics ----------------- None Robot Schematics ------------------ None Fabricated ------------ Nothing Alien Tech Used ----------------- None Achievements -------------- None Challenges ------------ None Game ------ Seed BattleGatlingStorage Manual? 0 Play Time 00:29:00 Cumulative 65.5 hours Start 2022.12.07 @ 17:55:56 End 2022.12.08 @ 16:47:11 Sessions 3 Manual Loads 0 Difficulty Adventurer Special Mode None Game No. 63 Rogue 0 Adventurer 63 Explorer 0 Win Type - Total 0 Types 0/0/0/0/0/0/0/0/0 Lore% 37 Gallery% 42 Achievement% 38 Wizard Run 0 Options --------- ASCII 0 Keyboard 0 Movement Mouse Keybinds 0 Fullscreen 2 Font 20/SmallcapsGlow Map View 66x50 Tactical HUD 1 Map Filters NONE Filters NONE Steam X RUN: e4165760-8f55-4246-a602-f7596db5aacb